Cogmind - Beta 12 @@@ ROGUE MODE // 2023.07.16 @ 16:10:54 Player: RoboCicero Result: Destroyed by Y-45 Defender with Beam Rifle Performance ------------- Evolutions (2) 1000 Regions Visited (5) 1000 Robots Destroyed (35) 175 Value Destroyed (1370) 1370 Prototype IDs (5) 100 Alien Tech Used (0) 0 Bonus (260) 260 TOTAL SCORE: 3905 Bonus ------- High Alert Combat Kills 10 Follower Combat Kills 50 Entered Garrisons 200 Cogmind --------- Core Integrity 0/550 Matter 209/300 Energy 95/100 System Corruption 5% Temperature Cool (18) Movement Core (100) Ox1 Location -8/Garrison Parts ------- > --- POWER (2) -------- (None) > --- PROPULSION (4) --- (None) > --- UTILITY (3) ------ Advanced Visual Processing Unit System Shield > --- WEAPON (2) ------- KE Penetrator > --- INVENTORY (5) ---- Improved Ion Engine High-capacity Matter Pod (200) Improved Terrain Scanner Smartbomb Launcher Peak State ------------ > --- POWER ------------ Improved Ion Engine > --- PROPULSION ------- Flight Unit Improved Flight Unit Improved Flight Unit Improved Flight Unit > --- UTILITY ---------- Small Storage Unit Weight Redist. System Advanced Visual Processing Unit > --- WEAPON ----------- Ion Cannon > --- INVENTORY -------- High-capacity Matter Pod Signal Interpreter Launcher Guidance Computer System Shield Recalibrator Shock Rifle Ion Cannon Rocket Launcher [Rating: 23] Favorites ----------- Power Light Ion Engine Engine Light Ion Engine Propulsion Aluminum Leg Leg Aluminum Leg Hover Unit Hover Unit Flight Unit Improved Flight Unit Utility Small Storage Unit Device ECM Suite Storage Small Storage Unit Processor Salvage Targeting Computer Hackware System Shield Weapon Light Assault Rifle Energy Gun Heavy EM Pulse Gun Energy Cannon Ion Cannon Ballistic Gun Light Assault Rifle Launcher Grenade Launcher Build | -11 -10 -9 -9 -8 -8 ------- Run | Jun Mat Mat Min Mat Gar Slots Evolved 4 | . . 2 . 2 . Power 1 | . . . . 1 . Propulsion 2 | . . 1 . 1 . Utility 1 | . . 1 . . . Weapon . | . . . . . . Parts Attached 48 | 6 4 19 3 9 7 Power 8 | 1 . 5 . 1 1 Engine 8 | 1 . 5 . 1 1 Core . | . . . . . . Reactor . | . . . . . . Propulsion 14 | 2 2 5 2 3 . Treads . | . . . . . . Leg 5 | 2 1 2 . . . Wheel . | . . . . . . Hover 1 | . 1 . . . . Flight 8 | . . 3 2 3 . Utility 9 | 1 1 4 . 2 1 Device 2 | . 1 . . 1 . Storage 4 | 1 . 3 . . . Processor 2 | . . 1 . 1 . Hackware 1 | . . . . . 1 Protection . | . . . . . . Artifact . | . . . . . . Weapon 17 | 2 1 5 1 3 5 Energy Gun 4 | . . 2 1 . 1 Energy Cannon 5 | . . . . 3 2 Ballistic Gun 6 | 2 . 3 . . 1 Ballistic Cannon . | . . . . . . Launcher 2 | . 1 . . . 1 Special Weapon . | . . . . . . Impact Weapon . | . . . . . . Slashing Weapon . | . . . . . . Piercing Weapon . | . . . . . . Special Melee Weapon . | . . . . . . Unidentified Prototypes 1 | . . 1 . . . Parts Lost 18 | . . 4 5 1 8 Power 2 | . . . 1 1 . Propulsion 8 | . . 2 2 . 4 Utility 1 | . . . . . 1 Weapon 7 | . . 2 2 . 3 Highest Loss Streak 6 | . . 1 5 1 6 To Critical Strikes . | . . . . . . Average Slot Usage (%) 80 | . 97 82 81 70 51 Engine 10 | . 14 11 9 7 . Leg 17 | . 28 22 . . . Flight 7 | . . 1 30 31 20 Device 9 | . 11 11 9 6 5 Storage 10 | . 14 11 11 9 6 Processor 5 | . . 5 11 10 9 Energy Gun 2 | . . 3 9 . . Energy Cannon 1 | . . . . 6 5 Ballistic Gun 11 | . 14 15 . . 2 Launcher 3 | . 13 1 . . . Naked Turns . | . . . . . . Heaviest Build 24 | 10 14 20 13 24 11 Greatest Support 30 | 20 20 30 13 25 14 Greatest Overweight (x) 4 | . 4 1 1 1 1 Average Overweight (x) . | . . . . . . Largest Inventory Capacity 25 | 8 8 25 8 8 8 Average Capacity 7 | 6 8 8 8 8 7 Most Carried 8 | 2 5 8 8 8 8 Average Carried 5 | 1 3 6 7 7 6 Final Capacity 8 | 8 8 8 8 8 5 Final Carried 8 | 2 5 8 6 8 5 Class Distribution -------------------- 91% | Mutant 5% | Sprinter Dominant Class ---------------- Mutant | -10/Materials Mutant | -9/Materials Mutant | -9/Mines Sprinter | -8/Materials Mutant | -8/Garrison Resources | -11 -10 -9 -9 -8 -8 ----------- Run | Jun Mat Mat Min Mat Gar Matter Collected 1142 | 244 154 664 10 70 . Remotely . | . . . . . . Salvage Created 1101 | . 188 641 71 55 146 Parts 89 | . 15 53 7 4 10 Haulers Intercepted 2 | . 1 1 . . . Recyclers Shooed . | . . . . . . Parts Field Recycled . | . . . . . . Retrieved Matter . | . . . . . . Parts Self-Destructed . | . . . . . . Prevented . | . . . . . . Kills | -11 -10 -9 -9 -8 -8 ------- Run | Jun Mat Mat Min Mat Gar Combat Hostiles Destroyed 30 | . 6 16 4 1 3 Guns 21 | . 1 15 4 . 1 Cannons 1 | . . . . 1 . AOE 8 | . 5 1 . . 2 Classes Destroyed 8 | . 3 3 1 . 1 Worker 1 | . . 1 . . . Hauler 2 | . 1 1 . . . Watcher 3 | . 2 1 . . . Swarmer 9 | . . 6 3 . . Grunt 14 | . 6 7 . . 1 Sentry 5 | . . 3 . 1 1 Programmer 1 | . . . . . 1 Assembled 1 | . . . 1 . . Best Kill Streak 6 | . 5 6 3 1 2 Combat Bots Only 4 | . 2 4 3 1 2 Max Kills in Single Turn 4 | . 2 4 1 1 1 Gunslinging . | . . . . . . Exploded 2 | . 2 1 . . 1 Melee . | . . . . . . Uniques/NPCs Destroyed . | . . . . . . Combat | -11 -10 -9 -9 -8 -8 -------- Run | Jun Mat Mat Min Mat Gar Damage Taken 2508 | . 257 686 345 379 841 Core 869 | . 49 141 128 155 396 Absorbed by Shields . | . . . . . . Core Remaining (%) 70 | 100 80 . 32 . . Volleys Fired 121 | . 17 68 10 8 18 Largest 2 | . 2 2 1 2 1 Hottest 120 | . 50 90 45 120 60 Shots Fired 170 | . 29 104 10 9 18 Gun 137 | . 17 103 10 . 7 Cannon 18 | . . . . 9 9 Launcher 15 | . 12 1 . . 2 Special . | . . . . . . Kinetic 116 | . 17 93 . . 6 Thermal 18 | . . . . 9 9 Explosive 15 | . 12 1 . . 2 Electromagnetic 21 | . . 10 10 . 1 Robot Hit Streak 6 | . 5 6 3 3 1 Robot Miss Streak 4 | . 2 4 2 4 2 Penetration Max 1 | . . . . . 1 Secondary Targets 2 | . . 2 . . . Max Gunslinging Chain 1 | . . 1 . . . Shots Hit Robots 81 | . 18 52 6 3 2 Core Hits 55 | . 16 27 5 2 5 Critical Kills . | . . . . . . Critical Parts Destroyed . | . . . . . . Critical Strikes . | . . . . . . Melee Attacks . | . . . . . . Impact . | . . . . . . Slashing . | . . . . . . Piercing . | . . . . . . Sneak Attacks . | . . . . . . Combat Hostiles . | . . . . . . Follow-up Attacks . | . . . . . . Damage Inflicted 1959 | . 606 824 92 69 368 Guns 955 | . 88 664 92 . 111 Cannons 69 | . . . . 69 . Explosions 935 | . 518 160 . . 257 Melee . | . . . . . . Ramming . | . . . . . . Kinetic 784 | . 88 585 . . 111 Thermal 95 | . . 26 . 69 . Explosive 909 | . 518 134 . . 257 Electromagnetic 171 | . . 79 92 . . Impact . | . . . . . . Slashing . | . . . . . . Piercing . | . . . . . . Highest Corruption 5 | . . 4 4 . 5 Average Corruption 3 | . . 4 4 . 2 Corruption Purged . | . . . . . . Corruption Blocked . | . . . . . . Effects 4 | . . 1 3 . . Matter Fused 1 | . . 1 . . . Heat Flow Errors 1 | . . . 1 . . Parts Rejected 1 | . . . 1 . . Data Loss (minor) 1 | . . . 1 . . Overload Shots . | . . . . . . Overflow Damage 31 | . 27 4 . . . Projectiles . | . . . . . . Explosions 31 | . 27 4 . . . Melee . | . . . . . . Knockbacks . | . . . . . . Impact . | . . . . . . Kinetic . | . . . . . . Secondary . | . . . . . . Self-Inflicted Damage 65 | . 23 15 . . 27 Shots 4 | . 2 1 . . 1 Rammed . | . . . . . . Targets Rammed . | . . . . . . Kicked . | . . . . . . Crushed . | . . . . . . Highest Temperature 126 | . 27 52 126 104 38 Average Temperature 23 | . 12 12 28 47 11 Received Heat Transfer 874 | . 135 234 136 126 243 Siege Activations . | . . . . . . Robots Corrupted . | . . . . . . Combat Hostiles . | . . . . . . Parts Fried . | . . . . . . Impact Corruptions . | . . . . . . Robots Melted . | . . . . . . Combat Hostiles . | . . . . . . Parts Melted . | . . . . . . Heat Transferred 161 | . . 50 . 111 . Parts Sabotaged . | . . . . . . Parts Stolen . | . . . . . . Parts Stripped . | . . . . . . Power Chain Reactions 1 | . . 1 . . . Missiles Intercepted . | . . . . . . Alert | -11 -10 -9 -9 -8 -8 ------- Run | Jun Mat Mat Min Mat Gar Peak Influence 474 | . 263 474 270 247 399 Initial 184 | . . 110 184 60 163 Average 198 | . 90 255 229 131 299 Maximum Alert Level 2 | . 1 2 1 1 1 Low Security (%) 51 | 100 90 33 22 89 8 Level 1 43 | . 9 56 77 10 91 Level 2 4 | . . 9 . . . Level 3 . | . . . . . . Level 4 . | . . . . . . Level 5 . | . . . . . . High Security . | . . . . . . Max Security . | . . . . . . Squads Dispatched 5 | . 1 2 . 2 . Investigation 4 | . 1 1 . 2 . Extermination . | . . . . . . Reinforcement 1 | . . 1 . . . Assault . | . . . . . . Garrison . | . . . . . . Intercept . | . . . . . . Searches Triggered . | . . . . . . Construction Impeded . | . . . . . . Haulers Reinforced . | . . . . . . Active Scanning Responses . | . . . . . . Cargo Convoy Interrupts . | . . . . . . Stealth | -11 -10 -9 -9 -8 -8 --------- Run | Jun Mat Mat Min Mat Gar Distress Signals 2 | . 1 . . 1 . Communications Jammed . | . . . . . . Distress Signals . | . . . . . . Times Spotted 92 | . 9 26 26 17 14 Peak Tracking Total 18 | . 4 4 18 14 9 Tactical Retreats 9 | . 1 3 1 1 3 Traps | -11 -10 -9 -9 -8 -8 ------- Run | Jun Mat Mat Min Mat Gar Traps Triggered 2 | . . 1 . 1 . Indirectly . | . . . . . . Trap Hack Attempts . | . . . . . . Triggered . | . . . . . . Disarmed . | . . . . . . Reprogrammed . | . . . . . . Reused . | . . . . . . Traps Extracted . | . . . . . . Installed . | . . . . . . Triggered . | . . . . . . Machines | -11 -10 -9 -9 -8 -8 ---------- Run | Jun Mat Mat Min Mat Gar Machines Disabled 6 | . 1 3 . . 2 Max in Single Turn 2 | . 1 2 . . 1 Garrison Relay 2 | . . . . . 2 Machines Repaired . | . . . . . . Machines Sabotaged . | . . . . . . Overloaded Fab Kills . | . . . . . . Hacking | -11 -10 -9 -9 -8 -8 --------- Run | Jun Mat Mat Min Mat Gar Machines Accessed 11 | . 2 3 . 5 1 Terminals 9 | . 2 3 . 3 1 Fabricators . | . . . . . . Repair Stations . | . . . . . . Recycling Units . | . . . . . . Scanalyzers 1 | . . . . 1 . Garrison Access 1 | . . . . 1 . Total Hacks 34 | . 8 13 . 12 1 Successful 24 | . 6 6 . 11 1 Failed 10 | . 2 7 . 1 . Catastrophic . | . . . . . . Database Lockouts . | . . . . . . Manual 7 | . . 5 . 2 . Terminals 29 | . 8 13 . 7 1 Fabricators . | . . . . . . Repair Stations . | . . . . . . Recycling Units . | . . . . . . Scanalyzers 4 | . . . . 4 . Garrison Access 1 | . . . . 1 . Terminal Hacks 19 | . 6 6 . 6 1 Record 11 | . 3 4 . 4 . Prototype ID Bank 2 | . 1 1 . . . Emergency Access Points 1 | . . . . . 1 Surveillance Status 1 | . 1 . . . . Patrol Status 1 | . . 1 . . . Reinforcement Status 1 | . 1 . . . . Zone Layout 2 | . . . . 2 . Fabricator Hacks . | . . . . . . Repair Station Hacks . | . . . . . . Recycling Unit Hacks . | . . . . . . Scanalyzer 4 | . . . . 4 . Insert Component 2 | . . . . 2 . Analyze 2 | . . . . 2 . Garrison Access Hacks 1 | . . . . 1 . Unlock Access 1 | . . . . 1 . Unauthorized Hacks . | . . . . . . Terminals . | . . . . . . Fabricators . | . . . . . . Repair Stations . | . . . . . . Recycling Units . | . . . . . . Scanalyzers . | . . . . . . Garrison Access . | . . . . . . Data Cores Recovered . | . . . . . . Used . | . . . . . . Hacking Detections 9 | . 2 3 . 4 . Full Trace Events 3 | . 1 1 . 1 . Feedback Events . | . . . . . . Feedback Blocked . | . . . . . . Robot Schematics Acquired . | . . . . . . Robots Built . | . . . . . . Authchips . | . . . . . . Time . | . . . . . . Total Robot Build Rating . | . . . . . . Part Schematics Acquired 2 | . . . . 2 . Parts Built . | . . . . . . Authchips . | . . . . . . Time . | . . . . . . Total Part Build Rating . | . . . . . . Parts Repaired . | . . . . . . Time . | . . . . . . Parts Recycled . | . . . . . . Recycled Matter . | . . . . . . Retrieved Matter . | . . . . . . Retrieved Components . | . . . . . . Parts Scanalyzed 2 | . . . . 2 . Part Schematics Acquired 2 | . . . . 2 . Parts Damaged . | . . . . . . Bothacking | -11 -10 -9 -9 -8 -8 ------------ Run | Jun Mat Mat Min Mat Gar Used RIF Installer . | . . . . . . Robots Hacked . | . . . . . . Non-combat . | . . . . . . Combat . | . . . . . . Robot Hacks Applied . | . . . . . . Relay Couplers Released 7 | . . . . . 7 Machine Destruction 7 | . . . . . 7 Fabnet Peak Effective % . | . . . . . . Robots Rewired . | . . . . . . Allies Hacked . | . . . . . . Hacks Repelled . | . . . . . . Allies | -11 -10 -9 -9 -8 -8 -------- Run | Jun Mat Mat Min Mat Gar Total Allies 5 | . . . 5 . . Largest Group 5 | . . . 5 . . Highest-Rated Group 92 | . . . 92 . . Highest-Rated Ally 31 | . . . 31 . . Total Orders . | . . . . . . Ally Attacks 17 | . . . 17 . . Total Damage 168 | . . . 168 . . Kills 3 | . . . 3 . . Allies Corrupted . | . . . . . . Allies Melted . | . . . . . . Intel | -11 -10 -9 -9 -8 -8 ------- Run | Jun Mat Mat Min Mat Gar Robot Analysis Total . | . . . . . . Derelict Logs Recovered . | . . . . . . Drone Launches . | . . . . . . Drone Recoveries . | . . . . . . Exploration | -11 -10 -9 -9 -8 -8 ------------- Run | Jun Mat Mat Min Mat Gar Turns Passed 1581 | 110 299 786 83 144 159 Spaces Moved 1514 | 87 188 485 152 310 292 Core 8 | 6 1 . . . 1 Treads . | . . . . . . Legs 726 | 81 187 458 . . . Wheels . | . . . . . . Hover . | . . . . . . Flight 780 | . . 27 152 310 291 Fastest Speed 31 | 50 120 34 34 31 34 Average Speed 77 | 115 130 115 35 33 35 Slowest Speed 250 | 120 250 190 112 110 100 Overloaded Moves . | . . . . . . Propulsion Burnouts . | . . . . . . Robots Hopped 21 | . . . 1 14 6 Cave-ins Triggered . | . . . . . . Exploration Rate (%) 32 | 4 38 47 29 31 44 Regions Visited 5 Branch Regions 1 Pre-discovered Areas . | . . . . . . Known Exits Taken 1 | . . . . 1 . Unknown Exits Taken 4 | 1 1 1 1 . . Scrap Searched . | . . . . . . Spaces Dug . | . . . . . . Terrain Destroyed 105 | . 49 43 . 1 12 Melee . | . . . . . . Projectile 1 | . . . . 1 . AOE 104 | . 49 43 . . 12 Terrain Rammed . | . . . . . . Walls Destroyed . | . . . . . . Machines Disabled . | . . . . . . Actions | -11 -10 -9 -9 -8 -8 --------- Run | Jun Mat Mat Min Mat Gar Total 1743 | 94 215 611 170 328 325 Wait 14 | . . 3 3 1 7 Move 1473 | 86 187 484 149 284 283 Hop 15 | . . . 1 11 3 Pick Up 32 | 2 3 16 2 8 1 Fast Attach 26 | 6 4 10 . 4 2 Attach 17 | . . 4 3 5 5 Detach 9 | . 1 3 . 2 3 Swap 5 | . . 5 . . . Drop 31 | . 3 18 2 5 3 Fire 121 | . 17 68 10 8 18 Melee . | . . . . . . Ram . | . . . . . . Kick . | . . . . . . Crush . | . . . . . . Escape Stasis . | . . . . . . Rewire . | . . . . . . Trap . | . . . . . . Miscellaneous . | . . . . . . Route ------- -11/Junkyard -10/Materials (discovered 2 exits: *Mat x2) -9/Materials -9/Mines -8/Materials -8/Garrison History --------- Turn | Location | Event 2 | -11/Junkyard | Met Revision 17 9 | -11/Junkyard | Discovered new exit (range 15) 111 | -11/Junkyard | Entered Materials 238 | -10/Materials | Discovered new exit (range 5) 316 | -10/Materials | Build established: Mutant 386 | -10/Materials | Discovered new exit (range 7) 410 | -10/Materials | Entered another Materials area 410 | -9/Materials | Evolved 2 slots: Propulsion x1, Utility x1 726 | -9/Materials | Discovered new exit (range 16) 1196 | -9/Materials | Entered Mines 1218 | -9/Mines | Discovered new exit (range 6) 1229 | -9/Mines | Assisted by bots powering up and referring to "LRC-V3" 1240 | -9/Mines | Assembled infested the area 1245 | -9/Mines | Assisted by a Guerilla fighting off Assembled 1254 | -9/Mines | Core integrity fell below 50% 1279 | -9/Mines | Entered Materials 1279 | -8/Materials | Evolved 2 slots: Power x1, Propulsion x1 1296 | -8/Materials | Lost 5 parts (1p2n2w) 1423 | -8/Materials | Identified exit to Garrison 1423 | -8/Materials | Entered Garrison 1430 | -8/Garrison | Triggered checkpoint 1436 | -8/Garrison | Garrison Relay disabled 1438 | -8/Garrison | Triggered checkpoint 1466 | -8/Garrison | Triggered checkpoint 1469 | -8/Garrison | Garrison Relay disabled 1479 | -8/Garrison | Triggered checkpoint 1485 | -8/Garrison | Triggered checkpoint 1524 | -8/Garrison | Core integrity fell below 50% 1530 | -8/Garrison | Triggered checkpoint 1572 | -8/Garrison | Core integrity fell below 20% 1576 | -8/Garrison | Lost 6 parts (2n1u3w) 1582 | -8/Garrison | Destroyed by Y-45 Defender with Beam Rifle Last Messages --------------- P-60 Hacker destroyed. Imp. Flight Unit destroyed. The unstable cave ceiling collapses. Aluminum Leg crushed. The unstable cave ceiling collapses. Dropped Sml. Storage Unit. Rocket Launcher destroyed. Acquired KE Penetrator. Slug penetrates Wall. Machine disabled. Slug penetrates Wall. Dropped Ion Cannon. Dropped Recalibrator. Acquired Smartbomb Launcher. Slug penetrates Wall. Critical hit (Burn: +37). Slug penetrates Y-45 Defender. Y-45 Defender destroyed. Acquired Imp. Ion Engine. Imp. Flight Unit destroyed. Map ----- +----------------------------------------------------+ | ???????????????????????????????" +? | | ???????????????????????????????# ## ## ###? | | ??????????????????????########## ## ## #### | | ????????????########??# + | | ???#######??#!!!! !#??# " | | ???#! #!!#??#!!!! !#??# ####### #### | | ???#!!+ !#??##### ##??# #?????# ## ##T###??? | | ???#+##+######### ##### #?????# ## ####????? | | ???# " #?????# #######???????? | | ???#+##+##### ######### #?????+ #?????????????? | | ??????+ !#??# #???????# #?????# #?????????????? | | ??????#!!#??#"#???????# #?????# #?????????????? | | ??????####?? ???????# #?????# #?????????????? | | ??????######"""########;;###+### #?????????????? | | ??? #?????????????? | | ??? #?????????????? | | ??? #?????????????? | | ?????################## #########+#?????????????? | | ??????????????????????# #???????????????????????? | | ????????############??# #???????????????????????? | | ????????#""""" """"#?##[ ##??????????????????????? | | ????????#"""!![!! ####% #??????????????????????? | | ????????#"" ##* #??????????????????????? | | ????????#"! ##+# # #######????????????????? | | ????????#"] # # # #"""""#????????????????? | | ????????#"!] # # #Y @## ###???????????????? | | ????????#"] #+## g [ ! +???????????????? | | ????????#"" ! Y pYg=% ! #???????????????? | | ????????#" " |!!]!"### pg # ##???????????????? | | ????????#""""" """"#?##%!## #????????????????? | | ????????############??#! ###+####????????????????? | | ??????????????????????# #???????????????????????? | | ??????????????????????# +???????????????????????? | | ??????????????????????# ##???????????????????????? | | ?????????????????????## ###??????????????????????? | | ?????????????????????#! !#??????????????????????? | | ?????????????????????#! !#??????????????????????? | | ?????????????????????##!!##??????????????????????? | | ??????????????????????####???????????????????????? | | ?????????????????????????????????????????????????? | | ?????????????????????????????????????????????????? | | ?????????????????????????????????????????????????? | | ?????????????????????????????????????????????????? | | ?????????????????????????????????????????????????? | | ?????????????????????????????????????????????????? | | ?????????????????????????????????????????????????? | | ?????????????????????????????????????????????????? | | ?????????????????????????????????????????????????? | | ?????????????????????????????????????????????????? | | | +----------------------------------------------------+ Best States ------------- Heat Dissipation 31 Energy Generation 12 Energy Capacity 265 Matter Stores 300 Matter Capacity 300 Sight Range 20 Terrain Scan Density 10 ECM Strength 1 Additional Mass Support 6 Evasion (%) 63 Salvage Targeting 1 Defensive Hacking 10 Item Schematics ----------------- Ion Cannon | -8/Materials | Scanalyzed Rocket Launcher | -8/Materials | Scanalyzed Robot Schematics ------------------ None Fabricated ------------ Nothing Alien Tech Used ----------------- None Achievements -------------- Cya! Librarian Loot Pinata The More The Merrier Challenges ------------ None Game ------ Seed MachineHellfireWings Manual? 0 Play Time 01:02:28 Cumulative 4.1 hours Start 2023.07.16 @ 11:15:53 End 2023.07.16 @ 16:10:54 Sessions 1 Manual Loads 0 Difficulty Rogue Special Mode None Game No. 7 Rogue 7 Adventurer 0 Explorer 0 Win Type - Total 0 Types 0/0/0/0/0/0/0/0/0 Lore% 3 Gallery% 12 Achievement% 10 Wizard Run 0 Options --------- ASCII 0 Keyboard 0 Movement Numpad Keybinds 0 Fullscreen 1 Font 24/Smallcaps Map View 76x50 Tactical HUD 0 Map Filters NONE Filters NONE Steam 1 RUN: 21ed8dd7-f494-429e-89f3-3545292e0752